{"text_format":"3","workbook":"xlsx","n_sheets":4,"sheets":["MỤC TIÊU","CHẾ ĐỘ ĂN UỐNG","TẬP THỂ DỤC","Tính toán Biểu đồ"],"not_rendered":{"charts":2,"defined_names":19},"read":"whole","date_system":"1900"}

{"sheet":"MỤC TIÊU","index":0,"n_rows":16,"n_cols":11,"rows_kept":16,"merged":[[2,1,3,1],[7,1,8,1]]}
[null,{"$f":"TODAY()","v":"2017-05-09"},"MỤC TIÊU",{"$nulls":6},"Tập thể dục","Chế độ ăn uống"]
[null,"NGÀY BẮT ĐẦU","NHẬT KÝ CHẾ ĐỘ ĂN UỐNG & TẬP THỂ DỤC"]
[null,{"$f":"StartDate+121","v":"2017-09-07"},"PHÂN TÍCH CHẾ ĐỘ ĂN UỐNG"]
[]
[null,"NGÀY KẾT THÚC"]
[null,{"v":100,"d":"100.00"}]
[null,"CÂN NẶNG BẮT ĐẦU"]
[null,{"v":80,"d":"80.00"},"PHÂN TÍCH TẬP THỂ DỤC"]
[]
[null,"CÂN NẶNG KẾT THÚC"]
[null,{"$f":"StartWeight-EndWeight","v":20}]
[null,"MỤC TIÊU GIẢM"]
[null,{"$f":"EndDate-StartDate","v":121}]
[null,"SỐ NGÀY GIẢM"]
[null,{"$f":"WeightGoal/B13","v":{"v":0.1652892561983471,"d":"0.17"}}]
[null,"GIẢM MỖI NGÀY"]

{"sheet":"CHẾ ĐỘ ĂN UỐNG","index":1,"n_rows":19,"n_cols":9,"rows_kept":19}
[null,"CHẾ ĐỘ ĂN UỐNG",{"$nulls":4},"Mục tiêu","Tập thể dục"]
[null,{"$f":"Tiêu_đề_phụ","v":"NHẬT KÝ CHẾ ĐỘ ĂN UỐNG & TẬP THỂ DỤC"}]
[null,"NGÀY","THỜI GIAN","MÔ TẢ","CALO","CARBOHYDRAT","PROTEIN","CHẤT BÉO","GHI CHÚ"]
[null,{"$f":"StartDate","v":"2017-05-09"},"07:00:00","Cà phê",1,0,0,0,"Cà phê sáng"]
[null,{"$f":"StartDate","v":"2017-05-09"},"08:00:00","Bánh mì tròn",10,10,2,10,"Bữa sáng nhẹ"]
[null,{"$f":"StartDate","v":"2017-05-09"},"12:00:00","Bữa trưa",283,46,18,{"v":3.5,"d":"4"},"Sandwich Thổ Nhĩ Kỳ"]
[null,{"$f":"StartDate","v":"2017-05-09"},"19:00:00","Bữa tối",500,42,35,25,"Tater tot casserole"]
[null,{"$f":"StartDate+1","v":"2017-05-10"},"07:00:00","Cà phê",1,0,0,0,"Cà phê sáng"]
[null,{"$f":"StartDate+1","v":"2017-05-10"},"08:00:00","Bánh mì nướng",10,10,2,10,"Bữa sáng nhẹ"]
[null,{"$f":"StartDate+1","v":"2017-05-10"},"12:00:00","Bữa trưa",189,26,3,8,"Sandwich"]
[null,{"$f":"StartDate+1","v":"2017-05-10"},"19:00:00","Bữa tối",477,62,{"v":13.5,"d":"14"},21,"Bữa tối"]
[null,{"$f":"StartDate+2","v":"2017-05-11"},"07:00:00","Cà phê",1,0,0,0,"Cà phê sáng"]
[null,{"$f":"StartDate+2","v":"2017-05-11"},"08:00:00","Bánh mì tròn",245,48,10,{"v":1.5,"d":"2"},"Bữa sáng nhẹ"]
[null,{"$f":"StartDate+2","v":"2017-05-11"},"12:00:00","Bữa trưa",247,11,43,5,"Xa lát"]
[null,{"$f":"StartDate+2","v":"2017-05-11"},"19:00:00","Bữa tối",456,64,32,22,"Bữa tối"]
[null,{"$f":"StartDate+3","v":"2017-05-12"},"07:00:00","Bánh mì nướng",10,10,2,10,"Bữa sáng nhẹ"]
[null,{"$f":"StartDate+3","v":"2017-05-12"},"10:00:00","Cà phê",135,{"v":12.36,"d":"12"},{"v":8.81,"d":"9"},{"v":5.51,"d":"6"},"Cà phê latte"]
[null,{"$f":"StartDate+3","v":"2017-05-12"},"12:15:00","Bữa trưa",184,7,{"v":5.43,"d":"5"},15,"Xa lát"]
[null,{"$f":"StartDate+5","v":"2017-05-14"},"19:00:00","Bữa tối",477,62,{"v":13.5,"d":"14"},21,"Bữa tối"]

{"sheet":"TẬP THỂ DỤC","index":2,"n_rows":20,"n_cols":7,"rows_kept":20}
[null,"TẬP THỂ DỤC",{"$nulls":3},"Chế độ ăn uống","Mục tiêu"]
[null,{"$f":"Tiêu_đề_phụ","v":"NHẬT KÝ CHẾ ĐỘ ĂN UỐNG & TẬP THỂ DỤC"}]
[null,"NGÀY","THỜI LƯỢNG (PHÚT)","LưỢNG CALO ĐỐT CHÁY","GHI CHÚ"]
[null,{"$f":"StartDate+4","v":"2017-05-13"},30,120,"Tập thể dục với máy tập chạy"]
[null,{"$f":"B4+1","v":"2017-05-14"},60,180,"Thể dục nhịp điệu nhịp chậm"]
[null,{"$f":"B5+1","v":"2017-05-15"},60,350,"Tập thể dục cường độ cao"]
[null,"2017-05-16",30,150,"Tập thể dục với máy tập chạy"]
[null,"2017-05-17",25,125,"Chạy"]
[null,"2017-05-18",20,285,"Tập thể dục với máy tập chạy"]
[null,"2017-05-19",40,205,"Chạy"]
[null,"2017-05-20",30,335,"Chạy"]
[null,"2017-05-21",40,175,"Chạy"]
[null,"2017-05-22",45,325,"Tập thể dục với máy tập chạy"]
[null,"2017-05-23",40,270,"Chạy"]
[null,"2017-05-24",20,295,"Tập thể dục với máy tập chạy"]
[null,"2017-05-25",45,350,"Chạy"]
[null,"2017-05-26",35,320,"Chạy"]
[null,"2017-05-27",40,290,"Chạy"]
[null,{"$f":"B18+1","v":"2017-05-28"},25,265,"Tập thể dục với máy tập chạy"]
[null,"2017-05-29",20,195,"Chạy"]

{"sheet":"Tính toán Biểu đồ","index":3,"n_rows":36,"n_cols":10,"rows_kept":36,"hidden":true,"merged":[[1,1,1,9],[19,1,19,9]]}
[]
[null,"DỮ LIỆU BIỂU ĐỒ PHÂN TÍCH CHẾ ĐỘ ĂN UỐNG"]
[]
[null,"Hàng bắt đầu",{"$f":"ROW(Chế_độ_ăn_uống[[#Headers],[NGÀY]])+1","v":4},"NGÀY","NGÀY","CHẤT BÉO","PROTEIN","CARBOHYDRAT","CALO","Số"]
[null,"Mục nhập chế độ ăn uống gần nhất",{"$f":"MATCH(9.99E+307,Chế_độ_ăn_uống[NGÀY])+DietRowStart-1","v":19},{"$f":"IFERROR(IF(INDEX(Chế_độ_ăn_uống[],DietLastEnd-DietRowStart-J5,1)<>\"\",INDEX(Chế_độ_ăn_uống[],DietLastEnd-DietRowStart-J5,1),\"\"),\"\")","v":"2017-05-09"},{"$f":"UPPER(TEXT(D5,\"DDD\"))","v":"T3"},{"$f":"IFERROR((IF(INDEX(Chế_độ_ăn_uống[],DietLastEnd-DietRowStart-J5,1)<>\"\",INDEX(Chế_độ_ăn_uống[],DietLastEnd-DietRowStart-J5,7),NA())),NA())","v":3.5},{"$f":"IFERROR((IF(INDEX(Chế_độ_ăn_uống[],DietLastEnd-DietRowStart-J5,1)<>\"\",INDEX(Chế_độ_ăn_uống[],DietLastEnd-DietRowStart-J5,6),NA())),NA())","v":18},{"$f":"IFERROR((IF(INDEX(Chế_độ_ăn_uống[],DietLastEnd-DietRowStart-J5,1)<>\"\",INDEX(Chế_độ_ăn_uống[],DietLastEnd-DietRowStart-J5,5),NA())),NA())","v":46},{"$f":"IFERROR((IF(INDEX(Chế_độ_ăn_uống[],DietLastEnd-DietRowStart-J5,1)<>\"\",INDEX(Chế_độ_ăn_uống[],DietLastEnd-DietRowStart-J5,4),NA())),NA())","v":283},12]
[{"$nulls":3},{"$f":"IFERROR(IF(INDEX(Chế_độ_ăn_uống[],DietLastEnd-DietRowStart-J6,1)<>\"\",INDEX(Chế_độ_ăn_uống[],DietLastEnd-DietRowStart-J6,1),\"\"),\"\")","v":"2017-05-09"},"T3",{"$f":"IFERROR((IF(INDEX(Chế_độ_ăn_uống[],DietLastEnd-DietRowStart-J6,1)<>\"\",INDEX(Chế_độ_ăn_uống[],DietLastEnd-DietRowStart-J6,7),NA())),NA())","v":25},{"$f":"IFERROR((IF(INDEX(Chế_độ_ăn_uống[],DietLastEnd-DietRowStart-J6,1)<>\"\",INDEX(Chế_độ_ăn_uống[],DietLastEnd-DietRowStart-J6,6),NA())),NA())","v":35},{"$f":"IFERROR((IF(INDEX(Chế_độ_ăn_uống[],DietLastEnd-DietRowStart-J6,1)<>\"\",INDEX(Chế_độ_ăn_uống[],DietLastEnd-DietRowStart-J6,5),NA())),NA())","v":42},{"$f":"IFERROR((IF(INDEX(Chế_độ_ăn_uống[],DietLastEnd-DietRowStart-J6,1)<>\"\",INDEX(Chế_độ_ăn_uống[],DietLastEnd-DietRowStart-J6,4),NA())),NA())","v":500},11]
[{"$nulls":3},{"$f":"IFERROR(IF(INDEX(Chế_độ_ăn_uống[],DietLastEnd-DietRowStart-J7,1)<>\"\",INDEX(Chế_độ_ăn_uống[],DietLastEnd-DietRowStart-J7,1),\"\"),\"\")","v":"2017-05-10"},"T4",{"$f":"IFERROR((IF(INDEX(Chế_độ_ăn_uống[],DietLastEnd-DietRowStart-J7,1)<>\"\",INDEX(Chế_độ_ăn_uống[],DietLastEnd-DietRowStart-J7,7),NA())),NA())","v":0},{"$f":"IFERROR((IF(INDEX(Chế_độ_ăn_uống[],DietLastEnd-DietRowStart-J7,1)<>\"\",INDEX(Chế_độ_ăn_uống[],DietLastEnd-DietRowStart-J7,6),NA())),NA())","v":0},{"$f":"IFERROR((IF(INDEX(Chế_độ_ăn_uống[],DietLastEnd-DietRowStart-J7,1)<>\"\",INDEX(Chế_độ_ăn_uống[],DietLastEnd-DietRowStart-J7,5),NA())),NA())","v":0},{"$f":"IFERROR((IF(INDEX(Chế_độ_ăn_uống[],DietLastEnd-DietRowStart-J7,1)<>\"\",INDEX(Chế_độ_ăn_uống[],DietLastEnd-DietRowStart-J7,4),NA())),NA())","v":1},10]
[{"$nulls":3},{"$f":"IFERROR(IF(INDEX(Chế_độ_ăn_uống[],DietLastEnd-DietRowStart-J8,1)<>\"\",INDEX(Chế_độ_ăn_uống[],DietLastEnd-DietRowStart-J8,1),\"\"),\"\")","v":"2017-05-10"},"T4",{"$f":"IFERROR((IF(INDEX(Chế_độ_ăn_uống[],DietLastEnd-DietRowStart-J8,1)<>\"\",INDEX(Chế_độ_ăn_uống[],DietLastEnd-DietRowStart-J8,7),NA())),NA())","v":10},{"$f":"IFERROR((IF(INDEX(Chế_độ_ăn_uống[],DietLastEnd-DietRowStart-J8,1)<>\"\",INDEX(Chế_độ_ăn_uống[],DietLastEnd-DietRowStart-J8,6),NA())),NA())","v":2},{"$f":"IFERROR((IF(INDEX(Chế_độ_ăn_uống[],DietLastEnd-DietRowStart-J8,1)<>\"\",INDEX(Chế_độ_ăn_uống[],DietLastEnd-DietRowStart-J8,5),NA())),NA())","v":10},{"$f":"IFERROR((IF(INDEX(Chế_độ_ăn_uống[],DietLastEnd-DietRowStart-J8,1)<>\"\",INDEX(Chế_độ_ăn_uống[],DietLastEnd-DietRowStart-J8,4),NA())),NA())","v":10},9]
[{"$nulls":3},{"$f":"IFERROR(IF(INDEX(Chế_độ_ăn_uống[],DietLastEnd-DietRowStart-J9,1)<>\"\",INDEX(Chế_độ_ăn_uống[],DietLastEnd-DietRowStart-J9,1),\"\"),\"\")","v":"2017-05-10"},"T4",{"$f":"IFERROR((IF(INDEX(Chế_độ_ăn_uống[],DietLastEnd-DietRowStart-J9,1)<>\"\",INDEX(Chế_độ_ăn_uống[],DietLastEnd-DietRowStart-J9,7),NA())),NA())","v":8},{"$f":"IFERROR((IF(INDEX(Chế_độ_ăn_uống[],DietLastEnd-DietRowStart-J9,1)<>\"\",INDEX(Chế_độ_ăn_uống[],DietLastEnd-DietRowStart-J9,6),NA())),NA())","v":3},{"$f":"IFERROR((IF(INDEX(Chế_độ_ăn_uống[],DietLastEnd-DietRowStart-J9,1)<>\"\",INDEX(Chế_độ_ăn_uống[],DietLastEnd-DietRowStart-J9,5),NA())),NA())","v":26},{"$f":"IFERROR((IF(INDEX(Chế_độ_ăn_uống[],DietLastEnd-DietRowStart-J9,1)<>\"\",INDEX(Chế_độ_ăn_uống[],DietLastEnd-DietRowStart-J9,4),NA())),NA())","v":189},8]
[{"$nulls":3},{"$f":"IFERROR(IF(INDEX(Chế_độ_ăn_uống[],DietLastEnd-DietRowStart-J10,1)<>\"\",INDEX(Chế_độ_ăn_uống[],DietLastEnd-DietRowStart-J10,1),\"\"),\"\")","v":"2017-05-10"},"T4",{"$f":"IFERROR((IF(INDEX(Chế_độ_ăn_uống[],DietLastEnd-DietRowStart-J10,1)<>\"\",INDEX(Chế_độ_ăn_uống[],DietLastEnd-DietRowStart-J10,7),NA())),NA())","v":21},{"$f":"IFERROR((IF(INDEX(Chế_độ_ăn_uống[],DietLastEnd-DietRowStart-J10,1)<>\"\",INDEX(Chế_độ_ăn_uống[],DietLastEnd-DietRowStart-J10,6),NA())),NA())","v":13.5},{"$f":"IFERROR((IF(INDEX(Chế_độ_ăn_uống[],DietLastEnd-DietRowStart-J10,1)<>\"\",INDEX(Chế_độ_ăn_uống[],DietLastEnd-DietRowStart-J10,5),NA())),NA())","v":62},{"$f":"IFERROR((IF(INDEX(Chế_độ_ăn_uống[],DietLastEnd-DietRowStart-J10,1)<>\"\",INDEX(Chế_độ_ăn_uống[],DietLastEnd-DietRowStart-J10,4),NA())),NA())","v":477},7]
[{"$nulls":3},{"$f":"IFERROR(IF(INDEX(Chế_độ_ăn_uống[],DietLastEnd-DietRowStart-J11,1)<>\"\",INDEX(Chế_độ_ăn_uống[],DietLastEnd-DietRowStart-J11,1),\"\"),\"\")","v":"2017-05-11"},"T5",{"$f":"IFERROR((IF(INDEX(Chế_độ_ăn_uống[],DietLastEnd-DietRowStart-J11,1)<>\"\",INDEX(Chế_độ_ăn_uống[],DietLastEnd-DietRowStart-J11,7),NA())),NA())","v":0},{"$f":"IFERROR((IF(INDEX(Chế_độ_ăn_uống[],DietLastEnd-DietRowStart-J11,1)<>\"\",INDEX(Chế_độ_ăn_uống[],DietLastEnd-DietRowStart-J11,6),NA())),NA())","v":0},{"$f":"IFERROR((IF(INDEX(Chế_độ_ăn_uống[],DietLastEnd-DietRowStart-J11,1)<>\"\",INDEX(Chế_độ_ăn_uống[],DietLastEnd-DietRowStart-J11,5),NA())),NA())","v":0},{"$f":"IFERROR((IF(INDEX(Chế_độ_ăn_uống[],DietLastEnd-DietRowStart-J11,1)<>\"\",INDEX(Chế_độ_ăn_uống[],DietLastEnd-DietRowStart-J11,4),NA())),NA())","v":1},6]
[{"$nulls":3},{"$f":"IFERROR(IF(INDEX(Chế_độ_ăn_uống[],DietLastEnd-DietRowStart-J12,1)<>\"\",INDEX(Chế_độ_ăn_uống[],DietLastEnd-DietRowStart-J12,1),\"\"),\"\")","v":"2017-05-11"},"T5",{"$f":"IFERROR((IF(INDEX(Chế_độ_ăn_uống[],DietLastEnd-DietRowStart-J12,1)<>\"\",INDEX(Chế_độ_ăn_uống[],DietLastEnd-DietRowStart-J12,7),NA())),NA())","v":1.5},{"$f":"IFERROR((IF(INDEX(Chế_độ_ăn_uống[],DietLastEnd-DietRowStart-J12,1)<>\"\",INDEX(Chế_độ_ăn_uống[],DietLastEnd-DietRowStart-J12,6),NA())),NA())","v":10},{"$f":"IFERROR((IF(INDEX(Chế_độ_ăn_uống[],DietLastEnd-DietRowStart-J12,1)<>\"\",INDEX(Chế_độ_ăn_uống[],DietLastEnd-DietRowStart-J12,5),NA())),NA())","v":48},{"$f":"IFERROR((IF(INDEX(Chế_độ_ăn_uống[],DietLastEnd-DietRowStart-J12,1)<>\"\",INDEX(Chế_độ_ăn_uống[],DietLastEnd-DietRowStart-J12,4),NA())),NA())","v":245},5]
[{"$nulls":3},{"$f":"IFERROR(IF(INDEX(Chế_độ_ăn_uống[],DietLastEnd-DietRowStart-J13,1)<>\"\",INDEX(Chế_độ_ăn_uống[],DietLastEnd-DietRowStart-J13,1),\"\"),\"\")","v":"2017-05-11"},"T5",{"$f":"IFERROR((IF(INDEX(Chế_độ_ăn_uống[],DietLastEnd-DietRowStart-J13,1)<>\"\",INDEX(Chế_độ_ăn_uống[],DietLastEnd-DietRowStart-J13,7),NA())),NA())","v":5},{"$f":"IFERROR((IF(INDEX(Chế_độ_ăn_uống[],DietLastEnd-DietRowStart-J13,1)<>\"\",INDEX(Chế_độ_ăn_uống[],DietLastEnd-DietRowStart-J13,6),NA())),NA())","v":43},{"$f":"IFERROR((IF(INDEX(Chế_độ_ăn_uống[],DietLastEnd-DietRowStart-J13,1)<>\"\",INDEX(Chế_độ_ăn_uống[],DietLastEnd-DietRowStart-J13,5),NA())),NA())","v":11},{"$f":"IFERROR((IF(INDEX(Chế_độ_ăn_uống[],DietLastEnd-DietRowStart-J13,1)<>\"\",INDEX(Chế_độ_ăn_uống[],DietLastEnd-DietRowStart-J13,4),NA())),NA())","v":247},4]
[{"$nulls":3},{"$f":"IFERROR(IF(INDEX(Chế_độ_ăn_uống[],DietLastEnd-DietRowStart-J14,1)<>\"\",INDEX(Chế_độ_ăn_uống[],DietLastEnd-DietRowStart-J14,1),\"\"),\"\")","v":"2017-05-11"},"T5",{"$f":"IFERROR((IF(INDEX(Chế_độ_ăn_uống[],DietLastEnd-DietRowStart-J14,1)<>\"\",INDEX(Chế_độ_ăn_uống[],DietLastEnd-DietRowStart-J14,7),NA())),NA())","v":22},{"$f":"IFERROR((IF(INDEX(Chế_độ_ăn_uống[],DietLastEnd-DietRowStart-J14,1)<>\"\",INDEX(Chế_độ_ăn_uống[],DietLastEnd-DietRowStart-J14,6),NA())),NA())","v":32},{"$f":"IFERROR((IF(INDEX(Chế_độ_ăn_uống[],DietLastEnd-DietRowStart-J14,1)<>\"\",INDEX(Chế_độ_ăn_uống[],DietLastEnd-DietRowStart-J14,5),NA())),NA())","v":64},{"$f":"IFERROR((IF(INDEX(Chế_độ_ăn_uống[],DietLastEnd-DietRowStart-J14,1)<>\"\",INDEX(Chế_độ_ăn_uống[],DietLastEnd-DietRowStart-J14,4),NA())),NA())","v":456},3]
[{"$nulls":3},{"$f":"IFERROR(IF(INDEX(Chế_độ_ăn_uống[],DietLastEnd-DietRowStart-J15,1)<>\"\",INDEX(Chế_độ_ăn_uống[],DietLastEnd-DietRowStart-J15,1),\"\"),\"\")","v":"2017-05-12"},"T6",{"$f":"IFERROR((IF(INDEX(Chế_độ_ăn_uống[],DietLastEnd-DietRowStart-J15,1)<>\"\",INDEX(Chế_độ_ăn_uống[],DietLastEnd-DietRowStart-J15,7),NA())),NA())","v":10},{"$f":"IFERROR((IF(INDEX(Chế_độ_ăn_uống[],DietLastEnd-DietRowStart-J15,1)<>\"\",INDEX(Chế_độ_ăn_uống[],DietLastEnd-DietRowStart-J15,6),NA())),NA())","v":2},{"$f":"IFERROR((IF(INDEX(Chế_độ_ăn_uống[],DietLastEnd-DietRowStart-J15,1)<>\"\",INDEX(Chế_độ_ăn_uống[],DietLastEnd-DietRowStart-J15,5),NA())),NA())","v":10},{"$f":"IFERROR((IF(INDEX(Chế_độ_ăn_uống[],DietLastEnd-DietRowStart-J15,1)<>\"\",INDEX(Chế_độ_ăn_uống[],DietLastEnd-DietRowStart-J15,4),NA())),NA())","v":10},2]
[{"$nulls":3},{"$f":"IFERROR(IF(INDEX(Chế_độ_ăn_uống[],DietLastEnd-DietRowStart-J16,1)<>\"\",INDEX(Chế_độ_ăn_uống[],DietLastEnd-DietRowStart-J16,1),\"\"),\"\")","v":"2017-05-12"},"T6",{"$f":"IFERROR((IF(INDEX(Chế_độ_ăn_uống[],DietLastEnd-DietRowStart-J16,1)<>\"\",INDEX(Chế_độ_ăn_uống[],DietLastEnd-DietRowStart-J16,7),NA())),NA())","v":5.51},{"$f":"IFERROR((IF(INDEX(Chế_độ_ăn_uống[],DietLastEnd-DietRowStart-J16,1)<>\"\",INDEX(Chế_độ_ăn_uống[],DietLastEnd-DietRowStart-J16,6),NA())),NA())","v":8.81},{"$f":"IFERROR((IF(INDEX(Chế_độ_ăn_uống[],DietLastEnd-DietRowStart-J16,1)<>\"\",INDEX(Chế_độ_ăn_uống[],DietLastEnd-DietRowStart-J16,5),NA())),NA())","v":12.36},{"$f":"IFERROR((IF(INDEX(Chế_độ_ăn_uống[],DietLastEnd-DietRowStart-J16,1)<>\"\",INDEX(Chế_độ_ăn_uống[],DietLastEnd-DietRowStart-J16,4),NA())),NA())","v":135},1]
[{"$nulls":3},{"$f":"IFERROR(IF(INDEX(Chế_độ_ăn_uống[],DietLastEnd-DietRowStart-J17,1)<>\"\",INDEX(Chế_độ_ăn_uống[],DietLastEnd-DietRowStart-J17,1),\"\"),\"\")","v":"2017-05-12"},"T6",{"$f":"IFERROR((IF(INDEX(Chế_độ_ăn_uống[],DietLastEnd-DietRowStart-J17,1)<>\"\",INDEX(Chế_độ_ăn_uống[],DietLastEnd-DietRowStart-J17,7),NA())),NA())","v":15},{"$f":"IFERROR((IF(INDEX(Chế_độ_ăn_uống[],DietLastEnd-DietRowStart-J17,1)<>\"\",INDEX(Chế_độ_ăn_uống[],DietLastEnd-DietRowStart-J17,6),NA())),NA())","v":5.43},{"$f":"IFERROR((IF(INDEX(Chế_độ_ăn_uống[],DietLastEnd-DietRowStart-J17,1)<>\"\",INDEX(Chế_độ_ăn_uống[],DietLastEnd-DietRowStart-J17,5),NA())),NA())","v":7},{"$f":"IFERROR((IF(INDEX(Chế_độ_ăn_uống[],DietLastEnd-DietRowStart-J17,1)<>\"\",INDEX(Chế_độ_ăn_uống[],DietLastEnd-DietRowStart-J17,4),NA())),NA())","v":184},0]
[{"$nulls":3},{"$f":"IFERROR(IF(INDEX(Chế_độ_ăn_uống[],DietLastEnd-DietRowStart-J18,1)<>\"\",INDEX(Chế_độ_ăn_uống[],DietLastEnd-DietRowStart-J18,1),\"\"),\"\")","v":"2017-05-14"},"CN",{"$f":"IFERROR((IF(INDEX(Chế_độ_ăn_uống[],DietLastEnd-DietRowStart-J18,1)<>\"\",INDEX(Chế_độ_ăn_uống[],DietLastEnd-DietRowStart-J18,7),NA())),NA())","v":21},{"$f":"IFERROR((IF(INDEX(Chế_độ_ăn_uống[],DietLastEnd-DietRowStart-J18,1)<>\"\",INDEX(Chế_độ_ăn_uống[],DietLastEnd-DietRowStart-J18,6),NA())),NA())","v":13.5},{"$f":"IFERROR((IF(INDEX(Chế_độ_ăn_uống[],DietLastEnd-DietRowStart-J18,1)<>\"\",INDEX(Chế_độ_ăn_uống[],DietLastEnd-DietRowStart-J18,5),NA())),NA())","v":62},{"$f":"IFERROR((IF(INDEX(Chế_độ_ăn_uống[],DietLastEnd-DietRowStart-J18,1)<>\"\",INDEX(Chế_độ_ăn_uống[],DietLastEnd-DietRowStart-J18,4),NA())),NA())","v":477},-1]
[]
[null,"DỮ LIỆU BIỂU ĐỒ PHÂN TÍCH TẬP THỂ DỤC"]
[]
[null,"Hàng bắt đầu",{"$f":"ROW(Tập_thể_dục[[#Headers],[NGÀY]])+1","v":4},"NGÀY","NGÀY","THỜI LƯỢNG (PHÚT)","LƯỢNG CALO TIÊU THỤ","Số"]
[null,"Mục nhập tập thể dục gần nhất",{"$f":"MATCH(9.99E+307,Tập_thể_dục[NGÀY])+ExerciseRowStart-1","v":20},{"$f":"IFERROR(IF(INDEX(Tập_thể_dục[],ExerciseLastEnd-ExerciseRowStart-H23,1)<>\"\",INDEX(Tập_thể_dục[],ExerciseLastEnd-ExerciseRowStart-H23,1)),\"\")","v":"2017-05-29"},{"$f":"UPPER(TEXT(D23,\"DDD\"))","v":"T2"},{"$f":"IFERROR((IF(INDEX(Tập_thể_dục[],ExerciseLastEnd-ExerciseRowStart-H23,1)<>\"\",INDEX(Tập_thể_dục[],ExerciseLastEnd-ExerciseRowStart-H23,2),0)),0)","v":20},{"$f":"IFERROR((IF(INDEX(Tập_thể_dục[],ExerciseLastEnd-ExerciseRowStart-H23,2)<>\"\",INDEX(Tập_thể_dục[],ExerciseLastEnd-ExerciseRowStart-H23,3),0)),0)","v":195},-1]
[{"$nulls":3},{"$f":"IFERROR(IF(INDEX(Tập_thể_dục[],ExerciseLastEnd-ExerciseRowStart-H24,1)<>\"\",INDEX(Tập_thể_dục[],ExerciseLastEnd-ExerciseRowStart-H24,1)),\"\")","v":"2017-05-28"},"CN",{"$f":"IFERROR((IF(INDEX(Tập_thể_dục[],ExerciseLastEnd-ExerciseRowStart-H24,1)<>\"\",INDEX(Tập_thể_dục[],ExerciseLastEnd-ExerciseRowStart-H24,2),0)),0)","v":25},{"$f":"IFERROR((IF(INDEX(Tập_thể_dục[],ExerciseLastEnd-ExerciseRowStart-H24,2)<>\"\",INDEX(Tập_thể_dục[],ExerciseLastEnd-ExerciseRowStart-H24,3),0)),0)","v":265},0]
[{"$nulls":3},{"$f":"IFERROR(IF(INDEX(Tập_thể_dục[],ExerciseLastEnd-ExerciseRowStart-H25,1)<>\"\",INDEX(Tập_thể_dục[],ExerciseLastEnd-ExerciseRowStart-H25,1)),\"\")","v":"2017-05-27"},"T7",{"$f":"IFERROR((IF(INDEX(Tập_thể_dục[],ExerciseLastEnd-ExerciseRowStart-H25,1)<>\"\",INDEX(Tập_thể_dục[],ExerciseLastEnd-ExerciseRowStart-H25,2),0)),0)","v":40},{"$f":"IFERROR((IF(INDEX(Tập_thể_dục[],ExerciseLastEnd-ExerciseRowStart-H25,2)<>\"\",INDEX(Tập_thể_dục[],ExerciseLastEnd-ExerciseRowStart-H25,3),0)),0)","v":290},1]
[{"$nulls":3},{"$f":"IFERROR(IF(INDEX(Tập_thể_dục[],ExerciseLastEnd-ExerciseRowStart-H26,1)<>\"\",INDEX(Tập_thể_dục[],ExerciseLastEnd-ExerciseRowStart-H26,1)),\"\")","v":"2017-05-26"},"T6",{"$f":"IFERROR((IF(INDEX(Tập_thể_dục[],ExerciseLastEnd-ExerciseRowStart-H26,1)<>\"\",INDEX(Tập_thể_dục[],ExerciseLastEnd-ExerciseRowStart-H26,2),0)),0)","v":35},{"$f":"IFERROR((IF(INDEX(Tập_thể_dục[],ExerciseLastEnd-ExerciseRowStart-H26,2)<>\"\",INDEX(Tập_thể_dục[],ExerciseLastEnd-ExerciseRowStart-H26,3),0)),0)","v":320},2]
[{"$nulls":3},{"$f":"IFERROR(IF(INDEX(Tập_thể_dục[],ExerciseLastEnd-ExerciseRowStart-H27,1)<>\"\",INDEX(Tập_thể_dục[],ExerciseLastEnd-ExerciseRowStart-H27,1)),\"\")","v":"2017-05-25"},"T5",{"$f":"IFERROR((IF(INDEX(Tập_thể_dục[],ExerciseLastEnd-ExerciseRowStart-H27,1)<>\"\",INDEX(Tập_thể_dục[],ExerciseLastEnd-ExerciseRowStart-H27,2),0)),0)","v":45},{"$f":"IFERROR((IF(INDEX(Tập_thể_dục[],ExerciseLastEnd-ExerciseRowStart-H27,2)<>\"\",INDEX(Tập_thể_dục[],ExerciseLastEnd-ExerciseRowStart-H27,3),0)),0)","v":350},3]
[{"$nulls":3},{"$f":"IFERROR(IF(INDEX(Tập_thể_dục[],ExerciseLastEnd-ExerciseRowStart-H28,1)<>\"\",INDEX(Tập_thể_dục[],ExerciseLastEnd-ExerciseRowStart-H28,1)),\"\")","v":"2017-05-24"},"T4",{"$f":"IFERROR((IF(INDEX(Tập_thể_dục[],ExerciseLastEnd-ExerciseRowStart-H28,1)<>\"\",INDEX(Tập_thể_dục[],ExerciseLastEnd-ExerciseRowStart-H28,2),0)),0)","v":20},{"$f":"IFERROR((IF(INDEX(Tập_thể_dục[],ExerciseLastEnd-ExerciseRowStart-H28,2)<>\"\",INDEX(Tập_thể_dục[],ExerciseLastEnd-ExerciseRowStart-H28,3),0)),0)","v":295},4]
[{"$nulls":3},{"$f":"IFERROR(IF(INDEX(Tập_thể_dục[],ExerciseLastEnd-ExerciseRowStart-H29,1)<>\"\",INDEX(Tập_thể_dục[],ExerciseLastEnd-ExerciseRowStart-H29,1)),\"\")","v":"2017-05-23"},"T3",{"$f":"IFERROR((IF(INDEX(Tập_thể_dục[],ExerciseLastEnd-ExerciseRowStart-H29,1)<>\"\",INDEX(Tập_thể_dục[],ExerciseLastEnd-ExerciseRowStart-H29,2),0)),0)","v":40},{"$f":"IFERROR((IF(INDEX(Tập_thể_dục[],ExerciseLastEnd-ExerciseRowStart-H29,2)<>\"\",INDEX(Tập_thể_dục[],ExerciseLastEnd-ExerciseRowStart-H29,3),0)),0)","v":270},5]
[{"$nulls":3},{"$f":"IFERROR(IF(INDEX(Tập_thể_dục[],ExerciseLastEnd-ExerciseRowStart-H30,1)<>\"\",INDEX(Tập_thể_dục[],ExerciseLastEnd-ExerciseRowStart-H30,1)),\"\")","v":"2017-05-22"},"T2",{"$f":"IFERROR((IF(INDEX(Tập_thể_dục[],ExerciseLastEnd-ExerciseRowStart-H30,1)<>\"\",INDEX(Tập_thể_dục[],ExerciseLastEnd-ExerciseRowStart-H30,2),0)),0)","v":45},{"$f":"IFERROR((IF(INDEX(Tập_thể_dục[],ExerciseLastEnd-ExerciseRowStart-H30,2)<>\"\",INDEX(Tập_thể_dục[],ExerciseLastEnd-ExerciseRowStart-H30,3),0)),0)","v":325},6]
[{"$nulls":3},{"$f":"IFERROR(IF(INDEX(Tập_thể_dục[],ExerciseLastEnd-ExerciseRowStart-H31,1)<>\"\",INDEX(Tập_thể_dục[],ExerciseLastEnd-ExerciseRowStart-H31,1)),\"\")","v":"2017-05-21"},"CN",{"$f":"IFERROR((IF(INDEX(Tập_thể_dục[],ExerciseLastEnd-ExerciseRowStart-H31,1)<>\"\",INDEX(Tập_thể_dục[],ExerciseLastEnd-ExerciseRowStart-H31,2),0)),0)","v":40},{"$f":"IFERROR((IF(INDEX(Tập_thể_dục[],ExerciseLastEnd-ExerciseRowStart-H31,2)<>\"\",INDEX(Tập_thể_dục[],ExerciseLastEnd-ExerciseRowStart-H31,3),0)),0)","v":175},7]
[{"$nulls":3},{"$f":"IFERROR(IF(INDEX(Tập_thể_dục[],ExerciseLastEnd-ExerciseRowStart-H32,1)<>\"\",INDEX(Tập_thể_dục[],ExerciseLastEnd-ExerciseRowStart-H32,1)),\"\")","v":"2017-05-20"},"T7",{"$f":"IFERROR((IF(INDEX(Tập_thể_dục[],ExerciseLastEnd-ExerciseRowStart-H32,1)<>\"\",INDEX(Tập_thể_dục[],ExerciseLastEnd-ExerciseRowStart-H32,2),0)),0)","v":30},{"$f":"IFERROR((IF(INDEX(Tập_thể_dục[],ExerciseLastEnd-ExerciseRowStart-H32,2)<>\"\",INDEX(Tập_thể_dục[],ExerciseLastEnd-ExerciseRowStart-H32,3),0)),0)","v":335},8]
[{"$nulls":3},{"$f":"IFERROR(IF(INDEX(Tập_thể_dục[],ExerciseLastEnd-ExerciseRowStart-H33,1)<>\"\",INDEX(Tập_thể_dục[],ExerciseLastEnd-ExerciseRowStart-H33,1)),\"\")","v":"2017-05-19"},"T6",{"$f":"IFERROR((IF(INDEX(Tập_thể_dục[],ExerciseLastEnd-ExerciseRowStart-H33,1)<>\"\",INDEX(Tập_thể_dục[],ExerciseLastEnd-ExerciseRowStart-H33,2),0)),0)","v":40},{"$f":"IFERROR((IF(INDEX(Tập_thể_dục[],ExerciseLastEnd-ExerciseRowStart-H33,2)<>\"\",INDEX(Tập_thể_dục[],ExerciseLastEnd-ExerciseRowStart-H33,3),0)),0)","v":205},9]
[{"$nulls":3},{"$f":"IFERROR(IF(INDEX(Tập_thể_dục[],ExerciseLastEnd-ExerciseRowStart-H34,1)<>\"\",INDEX(Tập_thể_dục[],ExerciseLastEnd-ExerciseRowStart-H34,1)),\"\")","v":"2017-05-18"},"T5",{"$f":"IFERROR((IF(INDEX(Tập_thể_dục[],ExerciseLastEnd-ExerciseRowStart-H34,1)<>\"\",INDEX(Tập_thể_dục[],ExerciseLastEnd-ExerciseRowStart-H34,2),0)),0)","v":20},{"$f":"IFERROR((IF(INDEX(Tập_thể_dục[],ExerciseLastEnd-ExerciseRowStart-H34,2)<>\"\",INDEX(Tập_thể_dục[],ExerciseLastEnd-ExerciseRowStart-H34,3),0)),0)","v":285},10]
[{"$nulls":3},{"$f":"IFERROR(IF(INDEX(Tập_thể_dục[],ExerciseLastEnd-ExerciseRowStart-H35,1)<>\"\",INDEX(Tập_thể_dục[],ExerciseLastEnd-ExerciseRowStart-H35,1)),\"\")","v":"2017-05-17"},"T4",{"$f":"IFERROR((IF(INDEX(Tập_thể_dục[],ExerciseLastEnd-ExerciseRowStart-H35,1)<>\"\",INDEX(Tập_thể_dục[],ExerciseLastEnd-ExerciseRowStart-H35,2),0)),0)","v":25},{"$f":"IFERROR((IF(INDEX(Tập_thể_dục[],ExerciseLastEnd-ExerciseRowStart-H35,2)<>\"\",INDEX(Tập_thể_dục[],ExerciseLastEnd-ExerciseRowStart-H35,3),0)),0)","v":125},11]
[{"$nulls":3},{"$f":"IFERROR(IF(INDEX(Tập_thể_dục[],ExerciseLastEnd-ExerciseRowStart-H36,1)<>\"\",INDEX(Tập_thể_dục[],ExerciseLastEnd-ExerciseRowStart-H36,1)),\"\")","v":"2017-05-16"},"T3",{"$f":"IFERROR((IF(INDEX(Tập_thể_dục[],ExerciseLastEnd-ExerciseRowStart-H36,1)<>\"\",INDEX(Tập_thể_dục[],ExerciseLastEnd-ExerciseRowStart-H36,2),0)),0)","v":30},{"$f":"IFERROR((IF(INDEX(Tập_thể_dục[],ExerciseLastEnd-ExerciseRowStart-H36,2)<>\"\",INDEX(Tập_thể_dục[],ExerciseLastEnd-ExerciseRowStart-H36,3),0)),0)","v":150},12]